Workbook

Sheet Escalier
A1: CALCUL D'UN ESCALIER QUART TOURNANT
R2: Lionel Ponnelle
A3: Remarque : Entrez vos dimensions dans les cases grises. Vous pouvez modifier la "Valeur du pas" entre 56 et 65 cm en cliquant sur les 2 boutons flèches.
A4: Vous pouvez ajuster le "Reculement de départ" en utilisant les boutons [+ 1 cm], [- 1 cm ], [+ 1 mm] ou [-1 mm], dans le cas où la position du pied de l'escalier est limitée par une porte ou un passage. Toutefois la "Longueur réelle de la 1ère volée" ne peut pas dépasser la "Longueur maximale de la 1ère volée". Les résultats sont affichés dans les cases bleues et sur le plan. Les cases jaunes indiquent des cotes secondaires.
A6: =IF(Long_trémie_1<Largeur+Rayon,"ERREUR : la trémie est trop courte !","Longueur de la trémie (volée basse)") -> Longueur de la trémie (volée basse) | B6: 200
A7: Marche palière : | B7: 5
A8: =IF(Long_trémie_2<Largeur+Rayon,"ERREUR : la trémie est trop courte !","Longueur de la trémie (volée haute)") -> Longueur de la trémie (volée haute) | B8: 200 | L8: =Long_trémie_1 -> 200
A9: Rayon du jour escalier : | B9: 0
A10: Largeur de l'escalier : | B10: 90
M11: =Marche_palière -> 5
A12: Hauteur de l'escalier : | B12: 280 | G12: =B8 -> 200 | H12: =Rayon -> 0
A13: Hauteur sous plafond : | B13: 250
A14: =IF(Echappée<190,"ATTENTION : l'échappée est faible !","Hauteur de l'échappée :") -> Hauteur de l'échappée : | B14: 200
H15: =Largeur -> 90
A16: Valeur du pas de foulée : | B16: 60
A17: Valeur réelle calculée : | B17: =2*H_marche+Giron -> 60.52 | R17: Ligne de foulée à la trémie
L18: =Long_trémie_1-Largeur-Rayon -> 110 | M18: + | N18: =PI()/2*(IF(Largeur>100,50,Largeur/2)+Rayon) -> 70.68583471 | O18: + | P18: =Long_trémie_2-Largeur-Rayon -> 110 | Q18: = | R18: =Volée_1+Volée_2+Tournant -> 290.6858347
A19: Longueur maximale de la 1ère volée : | B19: =Longueur_maxi-Volée_2-Tournant+Largeur+Rayon -> 257.1141653
A21: =IF(Longueur_reelle>Longueur_maxi,"ERREUR : valeur trop élevée !","Longueur réelle de la 1ère volée :") -> Longueur réelle de la 1ère volée : | B21: =Longueur_reelle-Volée_2-Tournant+Largeur+Rayon -> 257.1141653
F22: =B12 -> 280 | G22: =B13 -> 250 | J22: =B14 -> 200
A24: Reculement de départ : | B24: =Long_reelle_v1-Giron+Marche_palière -> 238.9274986
A27: Nombre de marches : | B27: =ROUND((2*Hauteur+Longueur_reelle)/Pas_foulée,0) -> 15
A28: (valeur non arrondie) : | B28: =(2*Hauteur+Longueur_reelle)/Pas_foulée -> 15.13 | M28: =B34 -> 38.83616407
A30: Hauteur de marche : | B30: =IF(N_marches>0,Hauteur/N_marches,0) -> 18.66666667 | L30: =Long_1ere_marche -> 238.9274986
A31: Giron de la marche : | B31: =IF(N_marches>0,Longueur_reelle/N_marches,0) -> 23.18666667 | L31: =Long_reelle_v1 -> 257.1141653
L32: =Long_maxi_v1 -> 257.1141653
A33: Longueur réelle ligne de foulée : | B33: 347.8 | L33: =Longueur_reelle -> 347.8
A34: Pente de l'escalier : | B34: =DEGREES(ATAN(Hauteur/Longueur_reelle)) -> 38.83616407 | L34: =ROUND((Foulée-Marche_palière)*Hauteur/(Hauteur-HSP+Echappée),1) -> 347.8
R35: mise à jour le 15-08-2017
